bitfinex-derivatives/quotes_SOLF0:USTF0_20241222
["timestamp","ask_amount","ask_price","bid_price","bid_amount"]
[1734843434265,2.7713,180.52,180.46,2.7722]
[1734843435668,2.7712,180.53,180.47,2.7721]
[1734843435869,3.22,180.61,180.48,14.87913436]
[1734843436171,2.7702,180.59,180.53,2.771]
[1734843436360,3.22,180.61,180.53,2.771]
[1734843436669,3.22,180.6,180.5,3.22]
[1734843436872,2.7707,180.57,180.51,2.7714]
[1734843437569,2.7707,180.56,180.51,2.7714]
[1734843438169,2.7705,180.57,180.51,2.7714]
[1734843438369,14.87913436,180.62,180.53,2.7711]
[1734843438571,3.22,180.61,180.5,3.22]
[1734843438772,2.7701,180.61,180.5,3.22]
[1734843438963,14.87913436,180.65,180.51,14.87913436]
[1734843439169,3.22,180.62,180.54,2.7709]
[1734843440072,2.7702,180.59,180.54,2.7709]
[1734843440272,3.22,180.58,180.5,5.9915]
[1734843440474,3.22,180.58,180.49,3.3065]
[1734843441372,2.7706,180.57,180.51,2.7713]
[1734843441573,2.7706,180.57,180.49,3.3065]
[1734843441973,3.22,180.58,180.31,116.1957649]
[1734843441974,3.22,180.58,180.42,14.87913436]
[1734843442173,3.22,180.58,180.43,1.6747]
[1734843442673,2.7716,180.51,180.46,2.7722]
[1734843443070,3.22,180.52,180.43,1.6747]
[1734843443375,3.22,180.56,180.47,14.87913436]
[1734843443573,3.22,180.57,180.48,3.2998]
[1734843443773,2.7708,180.56,180.51,2.7715]
[1734843444177,2.7712,180.54,180.49,2.7716]
[1734843444370,3.22,180.57,180.48,3.2998]
[1734843445166,2.7711,180.54,180.49,2.7718]
[1734843445472,3.22,180.53,180.48,3.2998]
[1734843445673,3.22,180.53,180.43,4.8947]
[1734843446876,2.7715,180.52,180.46,2.7722]
[1734843447274,3.22,180.53,180.43,1.6747]
[1734843447583,18.09913436,180.53,180.42,3.4645]
[1734843447775,18.09913436,180.53,180.37,16.51433436]
[1734843447982,14.87913436,180.5,180.37,4.4088]
[1734843448176,3.22,180.49,180.37,1.6352]
[1734843448678,2.7726,180.44,180.38,3.4868]
[1734843450378,2.7729,180.42,180.38,3.4868]
[1734843452188,3.22,180.45,180.39,2.7733]
[1734843452388,3.22,180.5,180.38,3.4868]
[1734843453088,2.7719,180.48,180.42,2.7728]
[1734843455093,2.7719,180.48,180.39,24.17365396]
[1734843455293,2.7719,180.48,180.43,2.7726]
[1734843455694,3.22,180.5,180.38,3.4868]
[1734843455695,7.42687515,180.62,180.47,2.772]
[1734843455890,24.17365396,180.6,180.45,24.17365396]
[1734843456197,24.17365396,180.6,180.46,5.0553]
[1734843456386,24.17365396,180.6,180.5,2.7716]
[1734843456790,2.7708,180.56,180.5,2.7716]
[1734843456993,3.16,180.57,180.46,5.0553]
[1734843457193,24.17365396,180.63,180.46,5.0553]
[1734843457393,3.16,180.62,180.46,5.0553]
[1734843457594,2.7706,180.57,180.5,2.7715]
[1734843457794,3.16,180.58,180.46,5.0553]
[1734843457996,2.7711,180.54,180.48,2.7718]
[1734843458489,2.7711,180.54,180.49,2.7718]
[1734843458697,2.7711,180.54,180.46,5.0553]
[1734843458995,3.16,180.54,180.46,5.0553]
[1734843459500,2.7715,180.52,180.46,5.0553]
[1734843459892,3.16,180.54,180.46,5.0553]
[1734843460397,3.16,180.57,180.52,2.7713]
[1734843461401,2.7707,180.57,180.52,2.7713]
[1734843463197,2.7705,180.58,180.53,2.7711]
[1734843463496,24.17365396,180.63,180.48,24.17365396]
[1734843463497,3.16,180.6,180.48,24.17365396]
[1734843463894,2.7704,180.59,180.53,2.7711]
[1734843464899,3.16,180.6,180.53,2.7711]
[1734843465098,2.7704,180.58,180.53,2.7711]
[1734843466496,2.7703,180.59,180.48,24.17365396]
[1734843466899,3.16,180.61,180.46,5.0553]
[1734843467599,24.17365396,180.6,180.46,5.0553]
[1734843467901,24.17365396,180.6,180.45,24.17365396]
[1734843468097,2.7708,180.56,180.47,2.7721]
[1734843468302,3.16,180.55,180.47,2.7721]
[1734843469309,2.7713,180.53,180.47,2.7721]
[1734843469606,2.7713,180.53,180.48,2.7719]
[1734843470704,3.16,180.55,180.4,5.0431]
[1734843471007,24.17365396,180.54,180.4,5.0431]
[1734843471503,24.17365396,180.48,180.34,61.29684685]
[1734843471804,24.17365396,180.45,180.34,61.29684685]
[1734843472099,3.16,180.44,180.3,27.62935396]
[1734843472505,3.16,180.44,180.33,2.7741]
[1734843472808,3.16,180.44,180.3,27.62935396]
[1734843473003,2.7732,180.4,180.34,2.774]
[1734843473701,3.16,180.44,180.38,2.7734]
[1734843474009,3.16,180.44,180.35,3.16]
[1734843474307,3.16,180.44,180.36,1.7485]
[1734843474607,3.16,180.44,180.39,2.7733]
[1734843474803,3.16,180.44,180.33,24.17365396]
[1734843475405,2.7732,180.4,180.33,27.33365396]
[1734843475808,3.16,180.44,180.33,27.33365396]
[1734843476708,2.7727,180.43,180.37,2.7735]
[1734843476910,2.7727,180.43,180.33,27.33365396]
[1734843476911,3.16,180.44,180.33,27.33365396]
[1734843477209,3.16,180.48,180.36,24.17365396]
[1734843477509,2.7724,180.46,180.37,3.16]
[1734843477912,2.7724,180.46,180.38,3.4313]
[1734843478499,2.7725,180.45,180.39,2.7733]
[1734843478707,3.16,180.48,180.38,3.4313]
[1734843478905,3.16,180.48,180.36,24.17365396]
[1734843479109,2.7726,180.44,180.38,2.7735]
[1734843479507,3.16,180.44,180.33,3.16]
[1734843480410,3.16,180.44,180.32,3.4313]
[1734843481208,24.17365396,180.42,180.32,3.4313]
[1734843481512,24.17365396,180.39,180.19,61.29684685]
[1734843481710,24.17365396,180.36,180.2,8.4232]
[1734843481900,3.16,180.35,180.2,32.59685396]
[1734843482103,2.7749,180.29,180.23,2.7758]
[1734843482501,3.16,180.3,180.22,24.17365396]
[1734843482708,3.16,180.3,180.22,27.33365396]
[1734843483111,3.16,180.3,180.25,2.7755]
[1734843483412,2.7749,180.29,180.22,27.33365396]
[1734843483802,2.7749,180.29,180.2,5.2632]
[1734843484009,3.16,180.3,180.2,5.2632]
[1734843484207,3.16,180.3,180.2,3.5357]
[1734843484412,2.7756,180.24,180.2,1.7783]
[1734843484611,3.16,180.24,180.2,1.7783]
[1734843484813,3.16,180.24,180.15,1.6404]
[1734843485713,2.7759,180.23,180.16,2.7769]
[1734843486103,2.7759,180.22,180.16,2.7769]
[1734843488615,24.17365396,180.33,180.17,24.17365396]
[1734843488822,3.3,180.32,180.17,24.17365396]
[1734843489324,24.17365396,180.3,180.15,1.6404]
[1734843489511,3.3,180.32,180.15,1.6404]
[1734843489717,24.17365396,180.3,180.15,1.6404]
[1734843490016,3.3,180.32,180.17,24.17365396]
[1734843492122,2.7751,180.28,180.18,2.7766]
[1734843492314,3.3,180.32,180.18,2.7766]
[1734843492315,3.3,180.27,180.18,2.7766]
[1734843492516,3.3,180.26,180.18,2.7766]
[1734843492819,3.3,180.25,180.18,2.7766]
[1734843493523,3.3,180.25,180.16,2.7769]
[1734843493723,3.3,180.25,180.15,1.6404]
[1734843494521,2.7762,180.21,180.15,4.4174]
[1734843496322,2.7763,180.2,180.15,4.4174]
[1734843497723,2.7761,180.22,180.15,1.6404]
[1734843497925,3.3,180.25,180.15,1.6404]
[1734843498425,24.17365396,180.33,180.17,24.17365396]
[1734843498628,3.3,180.32,180.17,24.17365396]
[1734843499023,24.17365396,180.3,180.17,24.17365396]
[1734843499225,24.17365396,180.3,180.15,1.6404]
[1734843500426,2.7761,180.22,180.16,2.7769]
[1734843501729,3.3,180.23,180.14,24.17365396]
[1734843501927,2.7762,180.21,180.14,24.17365396]
[1734843502124,3.3,180.23,180.14,24.17365396]
[1734843503227,3.3,180.23,180.16,2.7769]
[1734843503927,3.3,180.23,180.15,2.7769]
[1734843504126,3.3,180.22,180.15,2.7769]
[1734843505121,3.3,180.22,180.13,14.91125946]
[1734843505326,2.7762,180.21,180.16,2.7768]
[1734843505631,3.3,180.22,180.13,14.91125946]
[1734843506429,2.7764,180.19,180.14,2.7771]
[1734843507030,14.91125946,180.28,180.1,16.57985946]
[1734843507328,3.3,180.27,180.13,14.91125946]
[1734843507525,2.7762,180.21,180.15,2.7769]
[1734843508231,2.7763,180.2,180.15,2.7769]
[1734843509121,3.3,180.22,180.13,14.91125946]
[1734843510127,3.3,180.22,180.12,14.91125946]
[1734843510329,14.91125946,180.28,180.12,16.67335946]
[1734843510527,3.3,180.27,180.12,16.67335946]
[1734843511534,3.3,180.27,180.12,1.7621]
[1734843511730,14.91125946,180.25,180.12,1.7621]
[1734843512130,3.3,180.27,180.13,2.7772]
[1734843513435,2.7766,180.18,180.13,2.7772]
[1734843514032,2.7762,180.21,180.14,14.91125946]
[1734843514335,3.3,180.25,180.14,14.91125946]
[1734843514537,2.7763,180.2,180.16,2.7768]
[1734843514739,3.3,180.24,180.12,1.7621]
[1734843515831,2.7763,180.2,180.15,2.777]
[1734843516936,2.7764,180.19,180.15,2.777]
[1734843517334,3.3,180.19,180.13,2.7773]
[1734843517638,2.7766,180.18,180.12,1.7621]
[1734843518039,14.91125946,180.28,180.12,1.7621]
[1734843518240,2.7763,180.2,180.15,2.7769]
[1734843519043,2.7765,180.19,180.14,2.7772]
[1734843520336,3.16,180.21,180.1,1.6686]
[1734843520536,3.16,180.21,180.12,1.6039]
[1734843520537,2.7767,180.18,180.12,1.6039]
[1734843521438,2.7767,180.18,180.14,2.7771]
[1734843522141,2.7764,180.2,180.14,2.7771]
[1734843522342,2.7764,180.2,180.12,1.6039]
[1734843522539,3.16,180.24,180.14,14.91125946]
[1734843522745,2.7762,180.21,180.16,2.7768]
[1734843522941,3.16,180.24,180.14,14.91125946]
[1734843523136,3.16,180.24,180.12,1.6039]
[1734843523337,2.7765,180.19,180.14,2.7771]
[1734843523644,3.16,180.24,180.12,1.6039]
[1734843523844,2.7761,180.21,180.17,2.7767]
[1734843524438,3.16,180.24,180.13,14.91125946]
[1734843524738,2.7764,180.2,180.15,2.777]
[1734843525743,2.7764,180.2,180.16,2.7769]
[1734843527541,3.16,180.24,180.16,2.7769]
[1734843528043,2.7763,180.2,180.16,2.7769]
[1734843528539,2.7763,180.2,180.1,4.8286]
[1734843528540,2.7769,180.17,180.09,2.7778]
[1734843528742,3.16,180.2,180.1,14.91125946]
[1734843529135,2.7766,180.18,180.13,2.7772]
[1734843529348,3.16,180.2,180.1,14.91125946]
[1734843530447,3.16,180.2,180.13,2.7774]
[1734843530746,3.16,180.2,180.12,2.7775]
[1734843530747,2.7769,180.16,180.12,2.7775]
[1734843532946,2.7769,180.16,180.08,14.91125946]
[1734843532947,2.7772,180.14,180.1,2.7777]
[1734843533154,3.16,180.16,180.02,61.29684685]
[1734843533346,3.16,180.15,180.04,14.91125946]
[1734843533543,3.16,180.14,180.03,5.2096]
[1734843533843,18.07125946,180.13,180.02,61.29684685]
[1734843534150,14.91125946,180.1,180.02,61.29684685]
[1734843534350,3.16,180.09,180.0,2.0]
[1734843535249,14.91125946,180.13,180.0,2.0]
[1734843535450,2.7779,180.1,180.0,2.0]
[1734843535648,14.91125946,180.18,180.01,14.91125946]
[1734843535852,3.16,180.17,180.01,14.91125946]
[1734843536044,3.16,180.17,180.0,5.16]
[1734843536045,7.42687515,180.16,180.0,5.16]
[1734843536243,7.42687515,180.16,180.01,14.91125946]
[1734843536650,3.16,180.15,180.01,14.91125946]
[1734843537455,2.7778,180.11,180.05,2.7787]
[1734843537651,3.16,180.14,180.0,2.0]
[1734843537950,3.16,180.14,180.04,14.91125946]
[1734843538153,3.16,180.14,180.05,1.7134]
[1734843538553,2.7776,180.13,180.06,2.7785]
[1734843539144,3.16,180.14,180.07,1.7208]
[1734843539350,3.16,180.13,180.08,2.7782]
[1734843540251,3.16,180.13,180.07,1.7208]
[1734843540548,1.764,180.19,180.07,1.7208]
[1734843540549,14.91125946,180.24,180.07,4.8808]
[1734843540747,2.7767,180.19,180.13,2.7773]
[1734843540944,29.7075006,180.25,180.13,3.16]
[1734843541149,32.8675006,180.25,180.14,1.6383]
[1734843541353,29.7075006,180.26,180.14,1.6383]
[1734843541653,14.91125946,180.23,180.08,16.55915946]
[1734843541855,14.91125946,180.23,180.09,1.7454]
[1734843542057,2.777,180.16,180.1,2.7779]
[1734843542255,5.937,180.16,180.1,2.7779]
[1734843542448,1.9101,180.25,180.1,24.24538924]
[1734843542449,3.16,180.19,180.1,24.24538924]
[1734843542649,3.16,180.21,180.1,27.40538924]
[1734843542844,3.16,180.22,180.1,27.40538924]
[1734843543050,3.16,180.22,180.1,3.16]
[1734843543249,1.7755,180.25,180.1,27.40538924]
[1734843543549,3.16,180.24,180.1,27.40538924]
[1734843543751,2.777,180.16,180.11,2.7778]
[1734843543959,3.16,180.17,180.09,1.7454]
[1734843544449,3.16,180.17,180.1,2.7779]
[1734843544857,3.16,180.17,180.09,1.7454]
[1734843545059,2.7772,180.15,180.09,4.5235]
[1734843545359,2.7772,180.15,180.09,1.7454]
[1734843545551,3.16,180.17,180.08,1.6479]
[1734843545750,27.40538924,180.17,180.08,1.6479]
[1734843546355,2.7777,180.12,180.08,1.6479]
[1734843546552,3.16,180.16,180.08,1.6479]
[1734843546757,3.16,180.17,180.09,1.6505]
[1734843546960,5.937,180.17,180.11,2.7778]
[1734843547958,2.777,180.16,180.11,2.7778]
[1734843548159,3.16,180.17,180.09,1.6505]
[1734843548350,3.16,180.17,180.07,1.7208]
[1734843548554,2.7776,180.13,180.07,1.7208]
[1734843549158,2.7777,180.12,180.07,4.4992]
[1734843549555,24.24538924,180.23,180.07,25.96618924]
[1734843549759,32.9875006,180.24,180.1,24.24538924]
[1734843549960,32.9875006,180.24,180.14,2.7773]
[1734843550162,29.7075006,180.24,180.15,1.6091]
[1734843550455,2.7766,180.19,180.15,1.6091]
[1734843550654,3.28,180.23,180.15,1.6091]
[1734843551459,2.7766,180.19,180.15,1.6091]
[1734843552064,7.42687515,180.28,180.17,2.7769]
[1734843552363,3.28,180.27,180.16,27.52538924]
[1734843552559,2.7763,180.21,180.15,1.6091]
[1734843553063,2.7763,180.21,180.16,2.777]
[1734843553264,3.28,180.27,180.15,1.6091]
[1734843553265,2.7761,180.23,180.15,1.6091]
[1734843554359,6.0562,180.22,180.17,2.7769]
[1734843554559,3.28,180.21,180.11,3.4357]
[1734843554762,24.24538924,180.24,180.11,3.4357]
[1734843554763,3.28,180.2,180.11,3.4357]
[1734843555066,2.7772,180.16,180.11,1.7027]
[1734843555265,3.28,180.17,180.11,1.7027]
[1734843555458,3.28,180.19,180.11,1.7027]
[1734843556955,2.7771,180.16,180.11,1.7027]
[1734843557459,3.28,180.19,180.07,24.24538924]
[1734843557666,3.28,180.19,180.1,2.7779]
[1734843559661,3.28,180.19,180.09,2.7781]
[1734843559860,3.28,180.19,180.06,25.99248924]
[1734843560162,3.28,180.18,180.06,25.99248924]
[1734843561067,2.777,180.16,180.11,2.7777]
[1734843561669,2.7777,180.12,180.07,2.7784]
[1734843561863,3.28,180.18,180.06,24.24538924]
[1734843562570,3.28,180.18,180.08,2.7781]
[1734843564169,2.7775,180.14,180.08,2.7781]
[1734843564371,2.7775,180.14,180.06,24.24538924]
[1734843564574,2.7775,180.14,180.05,1.7045]
[1734843564575,1.6199,180.23,180.09,24.24538924]
[1734843564876,3.28,180.22,180.1,3.3143]
[1734843565173,3.28,180.22,180.1,6.0922]
[1734843565374,2.7773,180.15,180.1,6.0922]
[1734843565570,3.28,180.17,180.08,2.7782]
[1734843565874,3.28,180.16,180.08,2.7782]
[1734843566074,3.28,180.15,180.08,2.7782]
[1734843566374,2.7775,180.13,180.08,2.7782]
[1734843567871,3.28,180.15,180.02,14.92355044]
[1734843568074,3.28,180.15,180.02,18.28615044]
[1734843568470,2.7778,180.12,180.05,2.7787]
[1734843568680,3.28,180.15,180.02,18.28615044]
[1734843569281,3.28,180.15,180.05,14.92355044]
[1734843569483,3.28,180.15,180.05,18.20355044]
[1734843570482,2.7779,180.11,180.05,20.98215044]
[1734843571087,2.7776,180.13,180.08,2.7783]
[1734843571983,3.28,180.15,180.03,14.92355044]
[1734843572683,2.7779,180.11,180.06,2.7785]
[1734843572880,3.28,180.15,180.03,14.92355044]
[1734843573086,2.7779,180.11,180.07,2.7784]
[1734843574187,2.7774,180.14,180.09,2.778]
[1734843574389,3.28,180.16,180.04,3.28]
[1734843574686,3.28,180.15,180.04,3.28]
[1734843574887,2.7778,180.11,180.06,2.7785]
[1734843575086,3.28,180.15,180.04,3.28]
[1734843575286,3.28,180.15,180.06,14.92355044]
[1734843575790,3.28,180.15,180.08,2.7783]
[1734843575988,3.28,180.15,180.02,3.3626]
[1734843576188,3.28,180.15,180.03,14.92355044]
[1734843576585,2.778,180.1,180.05,2.7786]
[1734843576790,3.28,180.15,180.03,14.92355044]
[1734843577181,3.28,180.15,180.02,3.3626]
[1734843577383,2.7785,180.07,180.03,2.779]
[1734843578984,3.48,180.13,180.04,14.92355044]
[1734843579188,3.48,180.13,180.04,18.40355044]
[1734843579589,2.7778,180.12,180.07,2.7783]
[1734843579887,2.7778,180.12,180.04,18.40355044]
[1734843580587,44.76035104,180.23,180.04,18.40355044]
[1734843580588,29.7075006,180.23,180.11,14.92355044]
[1734843580788,3.48,180.22,180.0,46.36269801]
[1734843580985,5.2415,180.22,180.01,1.02057827]
[1734843581288,14.92355044,180.16,180.01,1.6079]
[1734843581591,3.48,180.15,180.06,2.7786]
[1734843581885,3.48,180.15,180.01,1.6079]
[1734843582086,3.48,180.14,180.02,14.92355044]
[1734843582285,3.48,180.13,180.02,14.92355044]
[1734843582488,3.48,180.13,180.01,1.6079]
[1734843582689,2.7783,180.09,180.02,2.7791]
[1734843582990,3.48,180.13,180.02,2.7791]
[1734843583389,2.7782,180.09,180.03,2.779]
[1734843585790,3.48,180.13,180.02,1.7683]
[1734843585989,3.48,180.13,180.02,4.5474]
[1734843585990,2.7783,180.08,180.02,4.5474]
[1734843588998,3.48,180.13,180.02,1.7683]
[1734843589694,3.48,180.13,180.03,2.779]
[1734843590496,2.7785,180.07,180.02,1.7683]
[1734843592197,2.7786,180.06,180.02,1.7683]
[1734843592798,6.2584,180.08,180.02,4.5475]
[1734843593299,3.48,180.08,180.02,4.5475]
[1734843593998,3.48,180.08,180.0,2.0]
[1734843594601,2.7791,180.03,180.0,2.0]
[1734843594798,6.2591,180.03,180.0,2.0]
[1734843595101,3.48,180.07,180.0,2.0]
[1734843595497,2.7788,180.05,180.0,4.7795]
[1734843596500,2.7786,180.06,180.0,4.7795]
[1734843597703,2.7786,180.06,180.01,2.7793]
[1734843597898,6.2586,180.06,180.01,2.7793]
[1734843598105,2.7789,180.04,180.0,2.0]
[1734843598298,3.48,180.06,180.0,2.0]
[1734843598796,3.48,180.06,180.02,2.7792]
[1734843599104,3.48,180.06,180.0,2.0]
[1734843599298,2.7794,180.01,180.0,2.0]
[1734843599507,6.2594,180.01,180.0,2.0]
[1734843600202,3.48,180.01,180.0,2.0]
[1734843600398,3.4002,180.05,180.0,2.0]
[1734843600597,3.48,180.04,180.0,2.0]
[1734843600802,6.259,180.04,180.0,2.0]
[1734843601002,14.92355044,180.09,180.0,2.0]
[1734843601203,3.48,180.08,180.0,2.0]
[1734843601801,2.7786,180.07,180.0,2.0]
[1734843602002,3.48,180.08,180.0,2.0]
[1734843602401,14.92355044,180.09,180.0,2.0]
[1734843602402,2.7787,180.06,180.0,2.0]
[1734843602602,2.7787,180.06,180.0,4.7794]
[1734843602799,3.48,180.07,180.0,2.0]
[1734843603202,3.48,180.12,180.01,3.3967]
[1734843603409,3.48,180.12,180.02,3.48]
[1734843603606,3.48,180.12,180.02,5.1491]
[1734843603907,2.7775,180.13,180.02,5.1491]
[1734843604297,29.7075006,180.15,180.04,14.92355044]
[1734843604502,29.7075006,180.2,180.13,2.7775]
[1734843604904,2.7768,180.18,180.11,2.7777]
[1734843605105,29.7075006,180.2,180.08,1.7179]
[1734843605810,14.92355044,180.18,180.08,1.7179]
[1734843606411,2.7772,180.15,180.08,4.496]
[1734843606607,3.48,180.14,180.08,4.496]
[1734843606808,14.92355044,180.18,180.08,4.496]
[1734843607002,3.56,180.19,180.04,1.6788]
[1734843607204,3.56,180.19,180.05,1.6837]
[1734843608013,2.7774,180.14,180.08,2.7782]
[1734843608212,14.92355044,180.21,180.08,3.56]
[1734843608406,3.56,180.21,180.08,18.48355044]
[1734843608606,18.48355044,180.21,180.08,2.7783]
[1734843608806,18.48355044,180.21,180.05,20.16725044]
[1734843609003,18.48355044,180.21,180.05,5.2437]
[1734843609207,18.48355044,180.21,180.1,2.7779]
[1734843609412,3.56,180.21,180.1,3.56]
[1734843609712,2.7763,180.21,180.11,3.3312]
[1734843609908,29.7075006,180.25,180.11,18.25475044]
[1734843610212,3.56,180.24,180.11,3.3312]
[1734843611312,3.56,180.23,180.15,2.7772]
[1734843611613,3.56,180.23,180.11,3.3312]
[1734843611814,14.92355044,180.21,180.11,1.7217]
[1734843612410,2.777,180.17,180.11,4.4995]
[1734843612608,3.56,180.17,180.11,4.4995]
[1734843612813,3.56,180.17,180.11,1.7217]
[1734843613307,3.56,180.17,180.06,1.732]
[1734843613907,3.56,180.17,180.01,1.6716]
[1734843613908,14.92355044,180.15,180.01,1.6716]
[1734843614516,2.7778,180.12,180.05,2.7787]
[1734843614710,3.56,180.11,180.01,1.6716]
[1734843614917,3.56,180.11,180.01,5.2316]
[1734843615114,3.56,180.11,180.04,2.7789]
[1734843615312,3.56,180.11,180.01,5.2316]
[1734843615511,3.56,180.11,180.03,14.92355044]
[1734843616015,3.56,180.11,180.06,2.7785]
[1734843616619,3.56,180.11,180.07,2.7784]
[1734843616815,3.56,180.11,180.03,14.92355044]
[1734843617318,6.338,180.11,180.01,1.6716]
[1734843617621,6.338,180.11,180.01,16.59515044]
[1734843617918,6.338,180.11,180.05,2.7786]
[1734843618119,6.338,180.11,180.01,16.59515044]
[1734843618314,6.338,180.11,180.05,2.7786]
[1734843618513,6.338,180.11,180.01,16.59515044]
[1734843619514,3.56,180.11,180.01,16.59515044]
[1734843619720,3.56,180.11,180.01,1.6716]
[1734843619916,3.56,180.11,180.02,2.7791]
[1734843620114,2.7789,180.04,180.01,1.6716]
[1734843620321,3.56,180.06,180.0,2.0]
[1734843620520,3.56,180.05,180.0,2.0]
[1734843621018,2.7792,180.03,180.0,2.0]
[1734843621216,3.56,180.05,180.0,2.0]
[1734843621617,2.7794,180.01,180.0,2.0]
[1734843623219,6.3394,180.01,180.0,2.0]
[1734843623415,3.56,180.01,180.0,2.0]
[1734843623819,14.92355044,180.09,180.0,2.0]
[1734843623820,248.1384799,180.18,180.0,2.0]
[1734843624020,14.92355044,180.11,180.0,2.0]
[1734843624622,2.7785,180.07,180.0,2.0]
[1734843624817,3.56,180.12,180.0,2.0]
[1734843625028,6.3377,180.12,180.07,2.7784]
[1734843625220,3.56,180.12,180.02,14.92355044]
[1734843625421,3.56,180.12,180.01,1.6225]
[1734843625422,3.56,180.12,180.03,1.7497]
[1734843626124,2.778,180.1,180.04,2.7787]
[1734843628124,2.778,180.11,180.05,2.7787]
[1734843628325,3.56,180.12,180.05,2.7787]
[1734843628721,2.7785,180.07,180.02,2.7792]
[1734843629422,3.56,180.07,180.01,1.6225]
[1734843629620,3.56,180.07,180.0,3.7363]
[1734843630523,3.56,180.07,180.0,2.0]
[1734843630719,27.82240132,180.07,180.0,2.0]
[1734843630926,2.7794,180.01,180.0,2.0]
[1734843631127,6.3394,180.01,180.0,2.0]
[1734843632529,2.7799,179.98,179.93,1.7167]
[1734843633627,3.56,180.01,179.92,4.5429]
[1734843634737,3.56,180.01,179.92,1.7622]
[1734843635728,2.7798,179.99,179.93,2.7805]
[1734843635935,3.56,180.01,179.93,2.7805]
[1734843636830,2.7797,180.0,179.94,2.7804]
[1734843637127,2.7797,180.0,179.92,1.7622]
[1734843637735,2.7797,180.0,179.96,2.7801]
[1734843638036,3.48,180.11,179.97,24.26240132]
[1734843638341,2.7777,180.13,180.07,2.7784]
[1734843638945,2.7778,180.12,180.06,2.7786]
[1734843639240,3.48,180.16,180.03,24.26240132]
[1734843639444,3.48,180.17,180.03,24.26240132]
[1734843640042,2.7772,180.15,180.03,24.26240132]
[1734843640232,3.48,180.17,180.03,24.26240132]
[1734843641040,3.48,180.17,180.06,24.26240132]
[1734843641240,3.48,180.17,180.07,1.6077]
[1734843642142,2.7777,180.12,180.07,4.3861]
[1734843642343,3.48,180.17,180.07,1.6077]
[1734843642743,3.48,180.17,180.03,2.779]
[1734843642744,2.7783,180.09,180.03,2.779]
[1734843643240,2.7783,180.09,180.02,1.638]
[1734843643241,2.7782,180.09,180.02,4.4172]
[1734843643542,3.48,180.11,180.02,4.4172]
[1734843644139,3.48,180.11,180.02,1.638]
[1734843644443,3.48,180.11,180.0,6.2594]
[1734843644639,2.7795,180.01,179.93,1.7355]
[1734843644940,6.2595,180.01,179.95,2.7803]
[1734843645246,3.48,180.01,179.93,1.7355]
[1734843646451,2.7796,180.0,179.94,2.7804]
[1734843648844,7.42687515,180.13,179.97,24.26240132]
[1734843649052,3.48,180.12,180.0,24.26240132]
[1734843649254,3.48,180.12,180.0,27.74240132]
[1734843649747,2.7778,180.11,180.03,24.26240132]
[1734843649946,3.48,180.13,180.03,24.26240132]
[1734843650149,3.48,180.13,180.04,3.3573]
[1734843650348,2.7776,180.12,180.07,2.7783]
[1734843650544,3.48,180.13,180.04,3.3573]
[1734843650748,3.48,180.17,180.06,24.26240132]
[1734843650946,27.53460132,180.22,180.07,1.6769]
[1734843651149,3.48,180.2,180.09,24.26240132]
[1734843651547,6.2565,180.2,180.13,2.7775]